[Event "Early-Titled-Tuesday-Blitz-June-18-2024"]
[Site "Chess.com"]
[Date "2024.06.18"]
[Round "7"]
[White "CrimeFightingSpider07"]
[Black "slidingknight2775"]
[Result "0-1"]
[WhiteElo "2543"]
[BlackElo "2695"]
[TimeControl "180+1"]
[EndTime "9:21:36 PDT"]
[Termination "slidingknight2775 won by resignation"]

1. d4 {[%clk 0:03:00.9]} 1... Nf6 {[%clk 0:03:00.5]} 2. Nf3 {[%clk 0:03:00]}
2... e6 {[%clk 0:03:00.7]} 3. c4 {[%clk 0:03:00.4]} 3... d5 {[%clk 0:03:00.6]}
4. g3 {[%clk 0:03:00.8]} 4... dxc4 {[%clk 0:02:58.9]} 5. Qa4+ {[%clk 0:02:58.8]}
5... c6 {[%clk 0:02:59.2]} 6. Qxc4 {[%clk 0:02:59.3]} 6... b5 {[%clk 0:02:59.6]}
7. Qd3 {[%clk 0:02:59.8]} 7... Bb7 {[%clk 0:03:00]} 8. Bg2 {[%clk 0:03:00.1]}
8... a6 {[%clk 0:03:00.6]} 9. O-O {[%clk 0:03:00.3]} 9... c5 {[%clk 0:03:01]}
10. dxc5 {[%clk 0:02:40.6]} 10... Qxd3 {[%clk 0:03:00.9]} 11. exd3 {[%clk
0:02:41.5]} 11... Bxc5 {[%clk 0:03:01.5]} 12. d4 {[%clk 0:02:41.6]} 12... Bd6
{[%clk 0:02:59.6]} 13. Nc3 {[%clk 0:02:41.3]} 13... Nbd7 {[%clk 0:02:58.6]} 14.
Be3 {[%clk 0:02:37.4]} 14... O-O {[%clk 0:02:55]} 15. Rfc1 {[%clk 0:02:29.6]}
15... Rfd8 {[%clk 0:02:45]} 16. Ne5 {[%clk 0:02:10.8]} 16... Bxg2 {[%clk
0:02:39.5]} 17. Nxd7 {[%clk 0:02:10.6]} 17... Bf3 {[%clk 0:02:29.5]} 18. Nxf6+
{[%clk 0:02:09.5]} 18... gxf6 {[%clk 0:02:30.4]} 19. Rc2 {[%clk 0:02:05.4]}
19... Rac8 {[%clk 0:02:03.3]} 20. Rac1 {[%clk 0:02:04]} 20... Rc4 {[%clk
0:02:03]} 21. b3 {[%clk 0:01:56]} 21... Rcc8 {[%clk 0:01:54.6]} 22. Nb1 {[%clk
0:01:51.5]} 22... Rxc2 {[%clk 0:01:52.4]} 23. Rxc2 {[%clk 0:01:52.4]} 23... Kg7
{[%clk 0:01:19.3]} 24. Nd2 {[%clk 0:01:44.9]} 24... Bd5 {[%clk 0:01:19]} 25. Kf1
{[%clk 0:01:44.3]} 25... a5 {[%clk 0:01:16.1]} 26. Ke2 {[%clk 0:01:37.6]} 26...
Ra8 {[%clk 0:01:10.5]} 27. Bf4 {[%clk 0:01:17.9]} 27... Bxf4 {[%clk 0:00:51.2]}
28. gxf4 {[%clk 0:01:18.8]} 28... Kg6 {[%clk 0:00:51.6]} 29. Rc5 {[%clk
0:01:12.9]} 29... Rb8 {[%clk 0:00:51]} 30. Ke3 {[%clk 0:01:10.2]} 30... a4
{[%clk 0:00:49]} 31. Rc7 {[%clk 0:01:02.9]} 31... axb3 {[%clk 0:00:43.6]} 32.
axb3 {[%clk 0:01:03.8]} 32... Ra8 {[%clk 0:00:41.1]} 33. Rc5 {[%clk 0:01:04.2]}
33... b4 {[%clk 0:00:23.9]} 34. Rb5 {[%clk 0:01:01.8]} 34... Ra1 {[%clk
0:00:24.3]} 35. Rxb4 {[%clk 0:01:01.9]} 35... Re1+ {[%clk 0:00:24.9]} 36. Kd3
{[%clk 0:01:01.7]} 36... Rh1 {[%clk 0:00:25.8]} 37. Rb8 {[%clk 0:00:56.7]} 37...
Rxh2 {[%clk 0:00:22.4]} 38. Ke3 {[%clk 0:00:40]} 38... Rh3+ {[%clk 0:00:19.9]}
39. f3 {[%clk 0:00:39.8]} 39... Kg7 {[%clk 0:00:19.5]} 40. b4 {[%clk 0:00:39.7]}
40... Rh1 {[%clk 0:00:19.8]} 41. Ne4 {[%clk 0:00:39.8]} 41... Re1+ {[%clk
0:00:17.1]} 42. Kf2 {[%clk 0:00:38.8]} 42... Rd1 {[%clk 0:00:15.4]} 43. Ke3
{[%clk 0:00:36.1]} 43... f5 {[%clk 0:00:14.5]} 44. Nd6 {[%clk 0:00:31.5]} 44...
Rf1 {[%clk 0:00:12]} 45. b5 {[%clk 0:00:26.1]} 45... Rxf3+ {[%clk 0:00:11.9]}
46. Kd2 {[%clk 0:00:25.4]} 46... Rxf4 {[%clk 0:00:12]} 47. Kc3 {[%clk
0:00:20.5]} 47... Rf3+ {[%clk 0:00:11.1]} 48. Kb4 {[%clk 0:00:21.1]} 48... h5
{[%clk 0:00:11]} 49. b6 {[%clk 0:00:20.2]} 49... h4 {[%clk 0:00:10.7]} 50. b7
{[%clk 0:00:19.7]} 50... Rb3+ {[%clk 0:00:10.9]} 51. Kc5 {[%clk 0:00:19.5]}
51... h3 {[%clk 0:00:10.2]} 52. Ra8 {[%clk 0:00:09.7]} 52... Bxb7 {[%clk
0:00:07.9]} 53. Nxb7 {[%clk 0:00:10]} 53... Rxb7 {[%clk 0:00:07.4]} 54. Ra3
{[%clk 0:00:10.9]} 54... h2 {[%clk 0:00:06.8]} 55. Rh3 {[%clk 0:00:11.4]} 55...
Rb2 {[%clk 0:00:06.3]} 56. Kd6 {[%clk 0:00:11]} 56... Kg6 {[%clk 0:00:05.8]} 57.
Ke5 {[%clk 0:00:11.1]} 57... Rf2 {[%clk 0:00:05.7]} 58. Rg3+ {[%clk 0:00:10.5]}
58... Kh5 {[%clk 0:00:05.7]} 59. Rg8 {[%clk 0:00:11.1]} 59... Kh4 {[%clk
0:00:05.8]} 60. d5 {[%clk 0:00:09.2]} 60... exd5 {[%clk 0:00:05.8]} 61. Kd4
{[%clk 0:00:09.7]} 61... Kh3 {[%clk 0:00:06.1]} 62. Rh8+ {[%clk 0:00:08.7]}
62... Kg2 {[%clk 0:00:06.6]} 63. Rg8+ {[%clk 0:00:09.1]} 63... Kf1 {[%clk
0:00:07.2]} 64. Rh8 {[%clk 0:00:09.8]} 64... Kg1 {[%clk 0:00:07.8]} 65. Ke3
{[%clk 0:00:10.3]} 65... Rg2 {[%clk 0:00:06.4]} 66. Ra8 {[%clk 0:00:07.8]} 66...
h1=Q {[%clk 0:00:06.5]} 67. Ra1+ {[%clk 0:00:07.7]} 67... Kh2 {[%clk 0:00:07.1]}
68. Ra3 {[%clk 0:00:08]} 68... Rg3+ {[%clk 0:00:07]} 69. Kf2 {[%clk 0:00:08.8]}
69... Rxa3 {[%clk 0:00:06.8]} 70. Ke2 {[%clk 0:00:08.7]} 70... Qe4+ {[%clk
0:00:07.4]} 71. Kd2 {[%clk 0:00:08.1]} 71... Rd3+ {[%clk 0:00:08]} 72. Kc2
{[%clk 0:00:08.2]} 72... Qc4+ {[%clk 0:00:08.7]} 73. Kb2 {[%clk 0:00:09]} 73...
Rb3+ {[%clk 0:00:09.3]} 0-1

[Event "Early-Titled-Tuesday-Blitz-June-18-2024"]
[Site "Chess.com"]
[Date "2024.06.18"]
[Round "7"]
[White "Rud_Makarian"]
[Black "KuzubovYuriy"]
[Result "1-0"]
[WhiteElo "3070"]
[BlackElo "2873"]
[TimeControl "180+1"]
[EndTime "9:21:42 PDT"]
[Termination "Rud_Makarian won by checkmate"]

1. e4 {[%clk 0:02:59.9]} 1... c5 {[%clk 0:02:33.8]} 2. Nf3 {[%clk 0:02:59.9]}
2... Nc6 {[%clk 0:02:32.4]} 3. d4 {[%clk 0:02:57.8]} 3... cxd4 {[%clk
0:02:33.3]} 4. Nxd4 {[%clk 0:02:58.7]} 4... g6 {[%clk 0:02:33.6]} 5. c4 {[%clk
0:02:51.2]} 5... Nf6 {[%clk 0:02:33.3]} 6. Nc3 {[%clk 0:02:50.9]} 6... d6 {[%clk
0:02:33.1]} 7. Be2 {[%clk 0:02:40.4]} 7... Bg7 {[%clk 0:02:32]} 8. Be3 {[%clk
0:02:40.7]} 8... O-O {[%clk 0:02:32.3]} 9. O-O {[%clk 0:02:41.2]} 9... Nxd4
{[%clk 0:02:31.9]} 10. Bxd4 {[%clk 0:02:40.7]} 10... Bd7 {[%clk 0:02:31.5]} 11.
f3 {[%clk 0:02:39.1]} 11... a5 {[%clk 0:02:31]} 12. b3 {[%clk 0:02:36.8]} 12...
Bc6 {[%clk 0:02:30.1]} 13. Qd2 {[%clk 0:02:36.8]} 13... Nd7 {[%clk 0:02:30.5]}
14. Be3 {[%clk 0:02:37.1]} 14... Nc5 {[%clk 0:02:30.7]} 15. Rad1 {[%clk
0:02:34.2]} 15... Qb6 {[%clk 0:02:30.1]} 16. Nb5 {[%clk 0:02:27.6]} 16... Rfc8
{[%clk 0:02:19.4]} 17. Kh1 {[%clk 0:02:26.5]} 17... Qd8 {[%clk 0:02:18.2]} 18.
Rfe1 {[%clk 0:02:14.9]} 18... Bf6 {[%clk 0:02:15.5]} 19. Bf1 {[%clk 0:02:03.5]}
19... Qf8 {[%clk 0:02:12.4]} 20. Nd4 {[%clk 0:02:02]} 20... Bg7 {[%clk
0:02:07.3]} 21. Nxc6 {[%clk 0:01:47.5]} 21... Rxc6 {[%clk 0:02:04.3]} 22. g3
{[%clk 0:01:44.5]} 22... Qd8 {[%clk 0:01:58.7]} 23. Bg2 {[%clk 0:01:41.6]} 23...
Qb6 {[%clk 0:01:58]} 24. f4 {[%clk 0:01:41.1]} 24... Rcc8 {[%clk 0:01:55.4]} 25.
h4 {[%clk 0:01:25.7]} 25... Qb4 {[%clk 0:01:52.1]} 26. Re2 {[%clk 0:01:23.9]}
26... Qxd2 {[%clk 0:01:45.7]} 27. Rdxd2 {[%clk 0:01:22.1]} 27... Rab8 {[%clk
0:01:39.8]} 28. Rd5 {[%clk 0:01:04.6]} 28... a4 {[%clk 0:01:23.1]} 29. Bxc5
{[%clk 0:00:35.9]} 29... Rxc5 {[%clk 0:01:12.5]} 30. Rxc5 {[%clk 0:00:30.9]}
30... dxc5 {[%clk 0:01:13.4]} 31. e5 {[%clk 0:00:31.6]} 31... axb3 {[%clk
0:01:09.4]} 32. axb3 {[%clk 0:00:31.3]} 32... b5 {[%clk 0:01:09.9]} 33. cxb5
{[%clk 0:00:29.2]} 33... Rxb5 {[%clk 0:01:08.7]} 34. Bd5 {[%clk 0:00:29.3]}
34... e6 {[%clk 0:01:07.9]} 35. Bc4 {[%clk 0:00:29.4]} 35... Ra5 {[%clk
0:01:05.7]} 36. Rd2 {[%clk 0:00:28.4]} 36... Bf8 {[%clk 0:01:05]} 37. Rd7 {[%clk
0:00:27.8]} 37... h5 {[%clk 0:01:02.1]} 38. Kg2 {[%clk 0:00:24.3]} 38... Ra1
{[%clk 0:01:00.7]} 39. Bb5 {[%clk 0:00:18.8]} 39... Rb1 {[%clk 0:00:55.2]} 40.
Rc7 {[%clk 0:00:18.8]} 40... Rb2+ {[%clk 0:00:41.9]} 41. Kh3 {[%clk 0:00:18.8]}
41... Rxb3 {[%clk 0:00:41.4]} 42. Be8 {[%clk 0:00:18.9]} 42... Bh6 {[%clk
0:00:39.3]} 43. Bxf7+ {[%clk 0:00:18.2]} 43... Kh8 {[%clk 0:00:35.4]} 44. Bxe6
{[%clk 0:00:14.5]} 44... Rc3 {[%clk 0:00:30.9]} 45. Kg2 {[%clk 0:00:14.5]} 45...
Rc2+ {[%clk 0:00:30.3]} 46. Kf1 {[%clk 0:00:13.2]} 46... Rc3 {[%clk 0:00:30.2]}
47. Kf2 {[%clk 0:00:11.2]} 47... Rc2+ {[%clk 0:00:29.9]} 48. Kf3 {[%clk
0:00:11.7]} 48... Rc3+ {[%clk 0:00:30.5]} 49. Ke4 {[%clk 0:00:11.3]} 49... Rxg3
{[%clk 0:00:29.6]} 50. Rf7 {[%clk 0:00:06.1]} 50... c4 {[%clk 0:00:22.8]} 51.
Bxc4 {[%clk 0:00:05.7]} 51... Rc3 {[%clk 0:00:17.4]} 52. Kd4 {[%clk 0:00:05.3]}
52... Ra3 {[%clk 0:00:16.6]} 53. e6 {[%clk 0:00:05.1]} 53... Bg7+ {[%clk
0:00:15.3]} 54. Ke4 {[%clk 0:00:04.1]} 54... Ra4 {[%clk 0:00:14.8]} 55. Kd5
{[%clk 0:00:03.8]} 55... Ra5+ {[%clk 0:00:13.8]} 56. Kc6 {[%clk 0:00:04.4]}
56... Ra4 {[%clk 0:00:13.3]} 57. Bd5 {[%clk 0:00:04]} 57... Ra6+ {[%clk
0:00:12.9]} 58. Kb5 {[%clk 0:00:04.4]} 58... Rd6 {[%clk 0:00:12.9]} 59. e7
{[%clk 0:00:04.2]} 59... Rxd5+ {[%clk 0:00:11.6]} 60. Kc6 {[%clk 0:00:04.8]}
60... Kg8 {[%clk 0:00:10.2]} 61. e8=Q+ {[%clk 0:00:04.9]} 61... Kh7 {[%clk
0:00:07.5]} 62. Kxd5 {[%clk 0:00:04.5]} 62... g5 {[%clk 0:00:07.3]} 63. Qe4+
{[%clk 0:00:04]} 63... Kg8 {[%clk 0:00:06.4]} 64. Qg6 {[%clk 0:00:04.4]} 64...
gxf4 {[%clk 0:00:05.9]} 65. Qxg7# {[%clk 0:00:05.3]} 1-0

[Event "Early-Titled-Tuesday-Blitz-June-18-2024"]
[Site "Chess.com"]
[Date "2024.06.18"]
[Round "7"]
[White "xasid81"]
[Black "Chessmatenokk17"]
[Result "0-1"]
[WhiteElo "2625"]
[BlackElo "2798"]
[TimeControl "180+1"]
[EndTime "9:21:58 PDT"]
[Termination "Chessmatenokk17 won by resignation"]

1. c4 {[%clk 0:02:44.9]} 1... e6 {[%clk 0:02:58.8]} 2. g3 {[%clk 0:02:44]} 2...
d5 {[%clk 0:02:58.7]} 3. Bg2 {[%clk 0:02:44.6]} 3... Nf6 {[%clk 0:02:58.9]} 4.
Nf3 {[%clk 0:02:42.4]} 4... c5 {[%clk 0:02:57.8]} 5. O-O {[%clk 0:02:40.1]} 5...
Be7 {[%clk 0:02:55.2]} 6. cxd5 {[%clk 0:02:35.9]} 6... Nxd5 {[%clk 0:02:51.2]}
7. d4 {[%clk 0:02:36.8]} 7... O-O {[%clk 0:02:48]} 8. Nc3 {[%clk 0:02:35.8]}
8... cxd4 {[%clk 0:02:46.5]} 9. Nxd5 {[%clk 0:02:34]} 9... Qxd5 {[%clk
0:02:47.1]} 10. Qxd4 {[%clk 0:02:34.2]} 10... Qh5 {[%clk 0:02:10.9]} 11. Bf4
{[%clk 0:02:25.4]} 11... Nc6 {[%clk 0:02:10.9]} 12. Qa4 {[%clk 0:02:17.8]} 12...
e5 {[%clk 0:02:09.1]} 13. Be3 {[%clk 0:02:17]} 13... Bh3 {[%clk 0:02:07]} 14.
Bxh3 {[%clk 0:02:06.8]} 14... Qxh3 {[%clk 0:02:06.8]} 15. Rfd1 {[%clk
0:02:04.1]} 15... Rad8 {[%clk 0:01:53.9]} 16. Rxd8 {[%clk 0:02:03.1]} 16... Rxd8
{[%clk 0:01:53.6]} 17. Rd1 {[%clk 0:02:03.8]} 17... Qc8 {[%clk 0:01:51.5]} 18.
Rxd8+ {[%clk 0:02:02.3]} 18... Qxd8 {[%clk 0:01:52.4]} 19. Kg2 {[%clk
0:01:50.6]} 19... h6 {[%clk 0:01:50.4]} 20. Qb5 {[%clk 0:01:43.5]} 20... Qc7
{[%clk 0:01:45.4]} 21. Qd5 {[%clk 0:01:40.9]} 21... Qd6 {[%clk 0:01:41.1]} 22.
Qxd6 {[%clk 0:01:38.2]} 22... Bxd6 {[%clk 0:01:42]} 23. Nd2 {[%clk 0:01:37.4]}
23... f5 {[%clk 0:01:40.2]} 24. f3 {[%clk 0:01:32.2]} 24... Kf7 {[%clk 0:01:40]}
25. a3 {[%clk 0:01:31.2]} 25... b5 {[%clk 0:01:36.9]} 26. Kf1 {[%clk 0:01:25.3]}
26... a5 {[%clk 0:01:37]} 27. Ke1 {[%clk 0:01:20.4]} 27... Ke6 {[%clk
0:01:36.9]} 28. Bb6 {[%clk 0:01:17.4]} 28... a4 {[%clk 0:01:37.1]} 29. Kd1
{[%clk 0:01:14.2]} 29... h5 {[%clk 0:01:26.9]} 30. e4 {[%clk 0:01:10.7]} 30...
g6 {[%clk 0:01:26.6]} 31. Kc2 {[%clk 0:01:07.5]} 31... Be7 {[%clk 0:01:21.7]}
32. Nb1 {[%clk 0:01:05.8]} 32... b4 {[%clk 0:00:48.8]} 33. Kd3 {[%clk
0:00:55.7]} 33... f4 {[%clk 0:00:42.3]} 34. axb4 {[%clk 0:00:39.7]} 34... Bxb4
{[%clk 0:00:39.3]} 35. gxf4 {[%clk 0:00:28.8]} 35... exf4 {[%clk 0:00:39.5]} 36.
Bc7 {[%clk 0:00:25.7]} 36... Ne5+ {[%clk 0:00:25.7]} 37. Ke2 {[%clk 0:00:22.5]}
37... g5 {[%clk 0:00:24.4]} 38. h3 {[%clk 0:00:22.3]} 38... Nc4 {[%clk
0:00:22.3]} 39. h4 {[%clk 0:00:20.5]} 39... gxh4 {[%clk 0:00:21.3]} 40. Bxf4
{[%clk 0:00:19.1]} 40... Nxb2 {[%clk 0:00:21.7]} 41. Bc1 {[%clk 0:00:16.1]}
41... Nc4 {[%clk 0:00:18.9]} 42. f4 {[%clk 0:00:15.5]} 42... a3 {[%clk
0:00:18.9]} 43. f5+ {[%clk 0:00:15.6]} 43... Kf7 {[%clk 0:00:18.1]} 44. Nxa3
{[%clk 0:00:13.7]} 44... Bxa3 {[%clk 0:00:18]} 45. Bg5 {[%clk 0:00:13.5]} 45...
Be7 {[%clk 0:00:17.8]} 46. Bf4 {[%clk 0:00:12.9]} 46... Bf6 {[%clk 0:00:17.8]}
47. Kf2 {[%clk 0:00:12]} 47... Ne5 {[%clk 0:00:18.4]} 48. Kg2 {[%clk 0:00:12]}
48... Ke7 {[%clk 0:00:18.5]} 49. Kh3 {[%clk 0:00:11.9]} 49... Ng4 {[%clk
0:00:13.1]} 50. Kg2 {[%clk 0:00:09.2]} 50... Kd7 {[%clk 0:00:13.4]} 51. Kh3
{[%clk 0:00:07.7]} 51... Ke8 {[%clk 0:00:13.5]} 52. e5 {[%clk 0:00:07.7]} 52...
Bd8 {[%clk 0:00:05.5]} 53. f6 {[%clk 0:00:07.4]} 53... Kf7 {[%clk 0:00:06.2]}
54. Kxh4 {[%clk 0:00:07.5]} 54... Kg6 {[%clk 0:00:06.8]} 55. Kg3 {[%clk
0:00:06.9]} 55... Kf5 {[%clk 0:00:07]} 56. f7 {[%clk 0:00:07.1]} 56... Be7
{[%clk 0:00:07.6]} 57. e6 {[%clk 0:00:06.6]} 57... Kxe6 {[%clk 0:00:07.7]} 58.
Kh3 {[%clk 0:00:06.5]} 58... Kxf7 {[%clk 0:00:08.2]} 59. Bg3 {[%clk 0:00:06.8]}
59... Kg6 {[%clk 0:00:08.8]} 60. Kg2 {[%clk 0:00:07.3]} 60... Kf5 {[%clk
0:00:09.4]} 61. Kh3 {[%clk 0:00:07.4]} 61... Nf6 {[%clk 0:00:09.5]} 62. Bh4
{[%clk 0:00:07.5]} 62... Nd5 {[%clk 0:00:06.6]} 63. Bg3 {[%clk 0:00:07.6]} 63...
Kg6 {[%clk 0:00:06.8]} 64. Kg2 {[%clk 0:00:06.8]} 64... Bg5 {[%clk 0:00:07.5]}
65. Kh3 {[%clk 0:00:07.2]} 65... Kf5 {[%clk 0:00:08.4]} 66. Kg2 {[%clk
0:00:07.6]} 66... Kg4 {[%clk 0:00:08.7]} 67. Be5 {[%clk 0:00:07]} 67... h4
{[%clk 0:00:09.3]} 68. Kh2 {[%clk 0:00:07.4]} 68... h3 {[%clk 0:00:10]} 69. Kh1
{[%clk 0:00:07.7]} 69... Bf4 {[%clk 0:00:08.9]} 70. Bd4 {[%clk 0:00:07.6]} 70...
Ne7 {[%clk 0:00:09]} 71. Bg1 {[%clk 0:00:07.8]} 71... Nf5 {[%clk 0:00:09.4]} 72.
Bf2 {[%clk 0:00:08.4]} 72... Kf3 {[%clk 0:00:09.3]} 73. Be1 {[%clk 0:00:07.9]}
73... Bg3 {[%clk 0:00:09.7]} 74. Bb4 {[%clk 0:00:06.6]} 74... Bf2 {[%clk
0:00:10.2]} 75. Kh2 {[%clk 0:00:04.4]} 75... Kg4 {[%clk 0:00:10.1]} 76. Kh1
{[%clk 0:00:04.7]} 76... Ng3+ {[%clk 0:00:10.1]} 77. Kh2 {[%clk 0:00:05.3]}
77... Nf1+ {[%clk 0:00:10.6]} 78. Kh1 {[%clk 0:00:05.8]} 78... Ng3+ {[%clk
0:00:06.8]} 79. Kh2 {[%clk 0:00:05.8]} 79... Ne4 {[%clk 0:00:07.7]} 80. Kh1
{[%clk 0:00:05]} 80... Be3 {[%clk 0:00:08.4]} 81. Be1 {[%clk 0:00:04.7]} 81...
Bf4 {[%clk 0:00:08.7]} 82. Kg1 {[%clk 0:00:04.3]} 82... Nc5 {[%clk 0:00:08.9]}
83. Kh1 {[%clk 0:00:04.1]} 83... Nd3 {[%clk 0:00:09.8]} 84. Bc3 {[%clk
0:00:02.7]} 84... Nf2+ {[%clk 0:00:10]} 0-1

[Event "Early-Titled-Tuesday-Blitz-June-18-2024"]
[Site "Chess.com"]
[Date "2024.06.18"]
[Round "7"]
[White "Gryffindorac8"]
[Black "GeorgiosSouleidis"]
[Result "0-1"]
[WhiteElo "2493"]
[BlackElo "2710"]
[TimeControl "180+1"]
[EndTime "9:22:00 PDT"]
[Termination "GeorgiosSouleidis won by resignation"]

1. d4 {[%clk 0:03:00.9]} 1... Nf6 {[%clk 0:03:00]} 2. c4 {[%clk 0:03:00.1]} 2...
g6 {[%clk 0:02:59.9]} 3. Nc3 {[%clk 0:02:58.8]} 3... Bg7 {[%clk 0:03:00.3]} 4.
e4 {[%clk 0:02:58.2]} 4... d6 {[%clk 0:03:00.7]} 5. Nf3 {[%clk 0:02:57.7]} 5...
O-O {[%clk 0:03:01.3]} 6. h3 {[%clk 0:02:56.8]} 6... Nbd7 {[%clk 0:02:55.5]} 7.
Be3 {[%clk 0:02:55.9]} 7... c5 {[%clk 0:02:55.5]} 8. d5 {[%clk 0:02:55.3]} 8...
b5 {[%clk 0:02:54.5]} 9. cxb5 {[%clk 0:02:53.7]} 9... a6 {[%clk 0:02:54.9]} 10.
bxa6 {[%clk 0:02:44.8]} 10... Qa5 {[%clk 0:02:54.2]} 11. Bd3 {[%clk 0:02:33.7]}
11... Bxa6 {[%clk 0:02:47.1]} 12. O-O {[%clk 0:02:30.6]} 12... Rfb8 {[%clk
0:02:46.7]} 13. Bxa6 {[%clk 0:02:26.2]} 13... Qxa6 {[%clk 0:02:38.4]} 14. Rb1
{[%clk 0:02:20.9]} 14... Nb6 {[%clk 0:02:18.1]} 15. Nd2 {[%clk 0:02:14.2]} 15...
Nfd7 {[%clk 0:02:14.5]} 16. Qc2 {[%clk 0:02:12.7]} 16... Ne5 {[%clk 0:02:11.2]}
17. b3 {[%clk 0:02:04.7]} 17... Nd3 {[%clk 0:02:00.2]} 18. a4 {[%clk 0:01:24.9]}
18... Nb4 {[%clk 0:01:57.1]} 19. Qc1 {[%clk 0:01:24.6]} 19... Nd3 {[%clk
0:01:32.1]} 20. Qc2 {[%clk 0:01:23.7]} 20... Nb4 {[%clk 0:01:29.6]} 21. Qc1
{[%clk 0:01:23.2]} 21... Nd7 {[%clk 0:01:23.7]} 22. Nb5 {[%clk 0:01:20.7]} 22...
Qb7 {[%clk 0:01:09]} 23. Nc4 {[%clk 0:01:13.6]} 23... Ne5 {[%clk 0:01:05.4]} 24.
Nxe5 {[%clk 0:01:12.7]} 24... Bxe5 {[%clk 0:01:06.3]} 25. f4 {[%clk 0:01:11.5]}
25... Bg7 {[%clk 0:01:06.3]} 26. Qc4 {[%clk 0:01:09.9]} 26... Na6 {[%clk
0:01:05.2]} 27. e5 {[%clk 0:00:57.1]} 27... Nc7 {[%clk 0:01:00.3]} 28. Nc3
{[%clk 0:00:43.9]} 28... Qc8 {[%clk 0:00:35.7]} 29. e6 {[%clk 0:00:14.8]} 29...
fxe6 {[%clk 0:00:34]} 30. dxe6 {[%clk 0:00:14.7]} 30... Rb4 {[%clk 0:00:30.5]}
31. Qd3 {[%clk 0:00:13.3]} 31... Qxe6 {[%clk 0:00:29.9]} 32. Rfe1 {[%clk
0:00:12.6]} 32... Qf5 {[%clk 0:00:25.8]} 33. Qd2 {[%clk 0:00:10.3]} 33... Rab8
{[%clk 0:00:23.9]} 34. Ne2 {[%clk 0:00:06.6]} 34... Rxb3 {[%clk 0:00:18.6]} 35.
Rxb3 {[%clk 0:00:07.3]} 35... Rxb3 {[%clk 0:00:19.3]} 36. Ng3 {[%clk 0:00:07.1]}
36... Qf7 {[%clk 0:00:17.2]} 37. f5 {[%clk 0:00:07.1]} 37... Qd5 {[%clk
0:00:16.6]} 38. Qf2 {[%clk 0:00:06]} 38... Rb2 {[%clk 0:00:13.9]} 39. Re2 {[%clk
0:00:06.1]} 39... Qd1+ {[%clk 0:00:12.7]} 40. Kh2 {[%clk 0:00:05.9]} 40... Rxe2
{[%clk 0:00:13]} 41. Nxe2 {[%clk 0:00:06.3]} 41... gxf5 {[%clk 0:00:12.4]} 42.
a5 {[%clk 0:00:06.3]} 42... Qd5 {[%clk 0:00:12]} 43. Nf4 {[%clk 0:00:05.3]}
43... Qe4 {[%clk 0:00:11.8]} 44. Qd2 {[%clk 0:00:04.9]} 44... Be5 {[%clk
0:00:11.7]} 45. Kg1 {[%clk 0:00:04.4]} 45... Bxf4 {[%clk 0:00:11.5]} 46. Bxf4
{[%clk 0:00:05.3]} 46... Nd5 {[%clk 0:00:12.1]} 47. Bg5 {[%clk 0:00:05.2]} 47...
Nb4 {[%clk 0:00:11.8]} 48. Qf2 {[%clk 0:00:04.9]} 48... Qd4 {[%clk 0:00:11.2]}
49. Be3 {[%clk 0:00:04]} 49... Qe4 {[%clk 0:00:11.1]} 50. Qg3+ {[%clk
0:00:04.2]} 50... Kf7 {[%clk 0:00:11.2]} 51. Qg5 {[%clk 0:00:04.6]} 51... Ke6
{[%clk 0:00:10.1]} 52. Qh6+ {[%clk 0:00:04.9]} 52... Kd5 {[%clk 0:00:10.2]} 53.
Bg5 {[%clk 0:00:04.8]} 53... e6 {[%clk 0:00:10.3]} 54. Qxh7 {[%clk 0:00:05]}
54... Qe1+ {[%clk 0:00:10.2]} 55. Kh2 {[%clk 0:00:05.1]} 55... Qe5+ {[%clk
0:00:10.9]} 56. Kg1 {[%clk 0:00:05.6]} 56... Qa1+ {[%clk 0:00:11]} 57. Kh2
{[%clk 0:00:05.8]} 57... Qxa5 {[%clk 0:00:11.3]} 58. Qb7+ {[%clk 0:00:06.2]}
58... Nc6 {[%clk 0:00:10.6]} 59. Qb3+ {[%clk 0:00:05.9]} 59... c4 {[%clk
0:00:10.5]} 60. Qf3+ {[%clk 0:00:06.2]} 60... Kc5 {[%clk 0:00:10.9]} 61. Be3+
{[%clk 0:00:06.7]} 61... Kb5 {[%clk 0:00:11.5]} 62. Qf4 {[%clk 0:00:06.4]} 62...
Qb4 {[%clk 0:00:11.1]} 63. Qf2 {[%clk 0:00:05.9]} 63... d5 {[%clk 0:00:11.1]}
64. Bd4 {[%clk 0:00:06.1]} 64... Nxd4 {[%clk 0:00:11.4]} 65. Qxd4 {[%clk
0:00:06.3]} 65... c3 {[%clk 0:00:11.6]} 66. Qd3+ {[%clk 0:00:05.8]} 66... Qc4
{[%clk 0:00:12.2]} 67. Qc2 {[%clk 0:00:06.1]} 67... d4 {[%clk 0:00:12.5]} 68.
Qb1+ {[%clk 0:00:06.2]} 68... Qb4 {[%clk 0:00:12.5]} 69. Qd3+ {[%clk 0:00:06.2]}
69... Kc5 {[%clk 0:00:13.1]} 70. g4 {[%clk 0:00:05.6]} 70... Qc4 {[%clk
0:00:12.7]} 71. Qb1 {[%clk 0:00:04.9]} 71... c2 {[%clk 0:00:12.6]} 72. Qc1
{[%clk 0:00:05.5]} 72... d3 {[%clk 0:00:13.1]} 73. Qe3+ {[%clk 0:00:05]} 73...
Qd4 {[%clk 0:00:13.2]} 74. Qc1 {[%clk 0:00:05.2]} 74... Qf2+ {[%clk 0:00:12]}
75. Kh1 {[%clk 0:00:05.4]} 75... Qf3+ {[%clk 0:00:12.3]} 76. Kh2 {[%clk
0:00:05.7]} 76... fxg4 {[%clk 0:00:12]} 77. hxg4 {[%clk 0:00:05.1]} 77... Qe2+
{[%clk 0:00:12.3]} 78. Kh3 {[%clk 0:00:04.2]} 78... Qd1 {[%clk 0:00:13.2]} 79.
Qe3+ {[%clk 0:00:04.1]} 79... Kc4 {[%clk 0:00:13.3]} 80. Qe4+ {[%clk 0:00:04.5]}
80... Kc3 {[%clk 0:00:13.9]} 81. Qe5+ {[%clk 0:00:04.7]} 81... Kd2 {[%clk
0:00:14.6]} 82. Qf4+ {[%clk 0:00:04.7]} 82... Ke1 {[%clk 0:00:14.7]} 83. Qe3+
{[%clk 0:00:04.2]} 83... Qe2 {[%clk 0:00:14.8]} 84. Qc1+ {[%clk 0:00:04.2]}
84... Kf2 {[%clk 0:00:14]} 85. Qf4+ {[%clk 0:00:04.3]} 85... Qf3+ {[%clk
0:00:14.5]} 0-1